bitfinex/quotes_BTCUSD_20241018
["timestamp","ask_amount","ask_price","bid_price","bid_amount"]
[1729225384178,2e-07,67793.0,67792.0,1.09107048]
[1729225384675,2e-07,67793.0,67792.0,1.09107047]
[1729225385646,2e-07,67793.0,67792.0,1.65864819]
[1729225386532,2e-07,67793.0,67792.0,1.64464819]
[1729225386763,2e-07,67793.0,67792.0,1.63064819]
[1729225386985,2e-07,67793.0,67792.0,1.64464819]
[1729225387419,2e-07,67793.0,67792.0,1.63064819]
[1729225387631,2e-07,67793.0,67792.0,1.64464819]
[1729225388066,2e-07,67793.0,67792.0,1.65864819]
[1729225388539,2e-07,67793.0,67792.0,1.64464819]
[1729225388751,2e-07,67793.0,67792.0,1.65864819]
[1729225390299,2e-07,67793.0,67792.0,1.65864818]
[1729225392265,2e-07,67793.0,67792.0,1.65818054]
[1729225393136,2e-07,67793.0,67792.0,1.65983654]
[1729225394328,2e-07,67793.0,67792.0,1.65982343]
[1729225398023,2e-07,67793.0,67792.0,1.85545545]
[1729225398472,2e-07,67793.0,67792.0,1.85545544]
[1729225399171,2e-07,67793.0,67792.0,1.65981459]
[1729225400877,2e-07,67793.0,67792.0,0.95981459]
[1729225403908,2e-07,67793.0,67792.0,1.11989956]
[1729225404119,2e-07,67793.0,67792.0,1.00422722]
[1729225404544,2e-07,67793.0,67792.0,1.11989956]
[1729225405017,2e-07,67793.0,67792.0,1.00422722]
[1729225405239,2e-07,67793.0,67792.0,0.99022722]
[1729225405677,2e-07,67793.0,67792.0,1.00422722]
[1729225405882,2e-07,67793.0,67792.0,0.99022722]
[1729225406338,2e-07,67793.0,67792.0,0.97622722]
[1729225406549,2e-07,67793.0,67792.0,1.09189956]
[1729225406756,2e-07,67793.0,67792.0,1.11989956]
[1729225406977,2e-07,67793.0,67792.0,0.87455488]
[1729225407185,2e-07,67793.0,67792.0,0.99022722]
[1729225407423,2e-07,67793.0,67792.0,1.00422722]
[1729225407651,2e-07,67793.0,67792.0,0.99022722]
[1729225408298,2e-07,67793.0,67792.0,1.00422722]
[1729225408513,2e-07,67793.0,67792.0,1.00430802]
[1729225408807,0.001656,67820.0,67792.0,1.00430802]
[1729225408808,0.001656,67820.0,67819.0,0.275451]
[1729225409012,0.001656,67820.0,67819.0,0.28853501]
[1729225409232,0.001656,67820.0,67819.0,0.334611]
[1729225409693,0.001656,67820.0,67819.0,0.33461099]
[1729225409937,0.001656,67820.0,67819.0,0.45028333]
[1729225410167,0.001656,67820.0,67819.0,0.46428333]
[1729225410806,0.001656,67820.0,67819.0,0.47828333]
[1729225411226,0.001656,67820.0,67819.0,0.46428333]
[1729225411456,0.001656,67820.0,67819.0,0.47828333]
[1729225411666,0.082356,67820.0,67819.0,0.47828333]
[1729225411879,0.178756,67820.0,67819.0,0.45028333]
[1729225412313,0.178756,67820.0,67819.0,0.46428333]
[1729225412573,0.178756,67820.0,67819.0,0.47576844]
[1729225413422,0.178756,67820.0,67819.0,0.62472759]
[1729225413633,0.178756,67820.0,67819.0,0.64638879]
[1729225414105,0.178756,67820.0,67819.0,0.66036484]
[1729225414531,0.178756,67820.0,67819.0,0.6003128]
[1729225415200,0.178756,67820.0,67819.0,0.6143128]
[1729225416251,0.178756,67820.0,67819.0,0.47564046]
[1729225416677,0.178756,67820.0,67819.0,0.47564045]
[1729225417358,0.000828,67832.0,67826.0,0.033]
[1729225417574,0.000828,67832.0,67826.0,0.59111565]
[1729225417803,0.000828,67832.0,67826.0,0.64788176]
[1729225418022,0.000828,67832.0,67826.0,0.60415181]
[1729225418476,0.000828,67832.0,67826.0,0.64831107]
[1729225418690,0.000828,67832.0,67826.0,0.64831106]
[1729225418939,0.000828,67832.0,67826.0,0.85965956]
[1729225419171,0.000828,67832.0,67826.0,0.94806031]
[1729225419436,0.000828,67832.0,67826.0,0.9480603]
[1729225419684,0.000828,67832.0,67826.0,0.78803656]
[1729225419919,0.000828,67832.0,67826.0,0.87323052]
[1729225420392,0.000828,67832.0,67826.0,0.94350902]
[1729225420621,0.000828,67832.0,67826.0,0.88323051]
[1729225420858,0.000827,67836.0,67835.0,0.280416]
[1729225420859,0.000487,67836.0,67835.0,0.280416]
[1729225421079,0.000487,67836.0,67835.0,0.54504749]
[1729225421324,0.000487,67836.0,67835.0,0.48820812]
[1729225421602,0.000487,67836.0,67835.0,0.60388046]
[1729225421854,0.000487,67836.0,67835.0,0.48820812]
[1729225422116,0.000487,67836.0,67835.0,0.55791984]
[1729225423319,0.006487,67836.0,67835.0,0.57191984]
[1729225423563,0.006487,67836.0,67835.0,0.59751139]
[1729225427731,0.006487,67836.0,67835.0,0.45883905]
[1729225427985,0.006487,67836.0,67835.0,0.57451139]
[1729225428204,0.006487,67836.0,67835.0,0.57495754]
[1729225428427,0.006487,67836.0,67835.0,0.57495753]
[1729225429335,0.006487,67836.0,67835.0,0.59795753]
[1729225431396,0.006487,67836.0,67835.0,0.59295753]
[1729225431640,0.176787,67836.0,67835.0,0.47228519]
[1729225431866,0.176787,67836.0,67835.0,0.45428518]
[1729225432796,0.176787,67836.0,67835.0,0.44928518]
[1729225433309,0.176787,67836.0,67835.0,0.45428518]
[1729225433975,0.29245934,67836.0,67835.0,0.18873448]
[1729225434223,0.29245934,67836.0,67835.0,0.04131848]
[1729225434440,0.29245934,67836.0,67835.0,0.18873448]
[1729225434659,0.29245934,67836.0,67835.0,0.02731847]
[1729225434888,0.29245934,67836.0,67835.0,0.16073447]
[1729225435108,0.176787,67836.0,67835.0,0.16073447]
[1729225435351,0.176787,67836.0,67835.0,0.18773447]
[1729225435853,0.176787,67836.0,67835.0,0.17473447]
[1729225436086,0.176787,67836.0,67835.0,0.17673447]
[1729225436563,0.176787,67836.0,67835.0,0.16273447]
[1729225437027,0.176787,67836.0,67835.0,0.16373447]
[1729225437700,0.176787,67836.0,67835.0,0.16073447]
[1729225437920,0.176787,67836.0,67835.0,0.16373447]
[1729225438364,0.176787,67836.0,67835.0,0.16073447]
[1729225438806,0.176787,67836.0,67835.0,0.16473447]
[1729225439525,0.176787,67836.0,67835.0,0.16938847]
[1729225439746,0.29245934,67836.0,67835.0,0.16938847]
[1729225440415,0.29245934,67836.0,67835.0,0.16638847]
[1729225440633,0.29245934,67836.0,67835.0,0.16238847]
[1729225441565,0.29245934,67836.0,67835.0,0.16338847]
[1729225442004,0.176787,67836.0,67835.0,0.16238847]
[1729225442227,0.176787,67836.0,67835.0,0.16338847]
[1729225443891,0.176787,67836.0,67835.0,0.16238847]
[1729225444127,0.176787,67836.0,67835.0,0.16638847]
[1729225444615,0.176787,67836.0,67835.0,0.16538847]
[1729225444851,0.176787,67836.0,67835.0,0.16938847]
[1729225447108,0.006487,67836.0,67835.0,0.43401996]
[1729225447569,0.006487,67836.0,67835.0,0.31834761]
[1729225450104,0.006487,67836.0,67835.0,0.43401995]
[1729225452206,0.006487,67836.0,67835.0,0.53401994]
[1729225452908,0.006487,67836.0,67835.0,0.53901994]
[1729225455175,0.006487,67836.0,67835.0,0.53901993]
[1729225455613,0.006487,67836.0,67835.0,0.56201993]
[1729225457618,0.006487,67836.0,67835.0,0.55701993]
[1729225457845,0.006487,67836.0,67835.0,0.56201993]
[1729225459441,0.006487,67836.0,67835.0,0.60500695]
[1729225459668,0.006487,67836.0,67835.0,0.48533461]
[1729225459908,0.006487,67836.0,67835.0,0.45334758]
[1729225460114,0.006487,67836.0,67835.0,0.46734758]
[1729225460552,0.006487,67836.0,67835.0,0.51334507]
[1729225460762,0.006487,67836.0,67835.0,0.49934507]
[1729225461196,0.006487,67836.0,67835.0,0.51334507]
[1729225461409,0.006487,67836.0,67835.0,0.50834507]
[1729225461633,0.006487,67836.0,67835.0,0.51334507]
[1729225463836,0.006487,67836.0,67835.0,0.50834507]
[1729225464057,0.006487,67836.0,67835.0,0.51334507]
[1729225464507,0.006487,67836.0,67835.0,0.51334506]
[1729225469505,0.006487,67836.0,67835.0,0.51334505]
[1729225474314,0.006487,67836.0,67835.0,0.49934505]
[1729225474993,0.006487,67836.0,67835.0,0.48534505]
[1729225476094,0.006487,67836.0,67835.0,0.49934505]
[1729225476314,0.006487,67836.0,67835.0,0.51334505]
[1729225476540,0.006487,67836.0,67835.0,0.49934505]
[1729225476762,0.006487,67836.0,67835.0,0.51334505]
[1729225483511,0.006487,67836.0,67835.0,0.55751889]
[1729225487456,0.006487,67836.0,67835.0,0.51334504]
[1729225489157,0.006487,67836.0,67835.0,0.62901738]
[1729225489402,0.006487,67836.0,67835.0,0.69530079]
[1729225490403,0.006487,67836.0,67835.0,0.8187095]
[1729225490639,0.006487,67836.0,67835.0,0.81870949]
[1729225491305,0.006487,67836.0,67835.0,0.75242608]
[1729225492400,0.006487,67836.0,67835.0,0.84080396]
[1729225493718,0.006487,67836.0,67835.0,0.81916922]
[1729225493931,0.006487,67836.0,67835.0,0.81916921]
[1729225494149,0.006487,67836.0,67835.0,0.69536476]
[1729225494365,0.006487,67836.0,67835.0,0.8191785]
[1729225495262,0.006487,67836.0,67835.0,0.7528311]
[1729225495505,0.006487,67836.0,67835.0,0.84120898]
[1729225498023,0.006487,67836.0,67835.0,0.84120897]
[1729225501173,0.006487,67836.0,67835.0,0.84119761]
[1729225502103,0.006487,67836.0,67835.0,0.70252527]
[1729225502329,0.006487,67836.0,67835.0,0.52959015]
[1729225502330,0.104687,67836.0,67835.0,0.52959015]
[1729225502554,0.104687,67836.0,67835.0,0.49034501]
[1729225502776,0.104687,67836.0,67835.0,0.490345]
[1729225505720,0.104687,67836.0,67835.0,0.04297236]
[1729225505721,0.29535934,67836.0,67835.0,0.04297236]
[1729225506164,0.32022094,67836.0,67835.0,0.04297236]
[1729225506383,0.30917134,67836.0,67835.0,0.04297236]
[1729225506611,0.30917134,67836.0,67835.0,0.01497236]
[1729225506612,0.32021527,67836.0,67835.0,0.01497236]
[1729225506831,0.30917134,67836.0,67835.0,0.01997236]
[1729225507062,0.29535934,67836.0,67835.0,0.01997236]
[1729225508199,0.29535934,67836.0,67835.0,0.01497236]
[1729225509316,0.28935934,67836.0,67835.0,0.01497236]
[1729225511851,0.43677334,67836.0,67835.0,0.01497236]
[1729225512180,0.30038617,67836.0,67835.0,0.00210001]
[1729225512353,0.28935934,67836.0,67835.0,0.01513621]
[1729225512580,0.30038373,67836.0,67835.0,0.01513621]
[1729225513249,0.28935934,67836.0,67835.0,0.01513621]
[1729225513498,0.64112404,67836.0,67835.0,0.01513621]
[1729225513713,0.64112404,67836.0,67835.0,0.00210001]
[1729225513714,0.65112404,67836.0,67835.0,0.00210001]
[1729225513937,0.71933622,67836.0,67835.0,0.00210001]
[1729225514164,0.90423638,67836.0,67835.0,0.00210001]
[1729225514381,0.71925878,67836.0,67835.0,0.00210001]
[1729225515283,0.72025878,67836.0,67835.0,0.00210001]
[1729225515495,0.57646445,67836.0,67835.0,0.00210001]
[1729225515744,0.97539865,67836.0,67835.0,0.00210001]
[1729225516014,0.88711574,67836.0,67835.0,0.00210001]
[1729225516169,0.99946938,67836.0,67835.0,0.00310001]
[1729225516383,0.97722849,67836.0,67835.0,0.00310001]
[1729225516595,0.97322849,67836.0,67835.0,0.00210001]
[1729225516813,0.97322849,67836.0,67835.0,0.00310001]
[1729225517037,0.7694434,67836.0,67835.0,0.00210001]
[1729225517265,0.4908181,67836.0,67835.0,0.00210001]
[1729225517501,0.44677334,67836.0,67835.0,0.00310001]
[1729225518394,0.45777963,67836.0,67835.0,0.00310001]
[1729225518635,0.72096912,67836.0,67835.0,0.00310001]
[1729225519083,0.72096912,67836.0,67835.0,0.00410001]
[1729225519323,0.71896912,67836.0,67835.0,0.00210001]
[1729225519557,0.72096912,67836.0,67835.0,0.00410001]
[1729225519811,0.72296912,67836.0,67835.0,0.00310001]
[1729225520036,0.72096912,67836.0,67835.0,0.00210001]
[1729225520260,0.86992827,67836.0,67835.0,0.00310001]
[1729225520485,0.86992827,67836.0,67835.0,0.00210001]
[1729225520922,0.91393752,67836.0,67835.0,0.00210001]
[1729225521381,0.87192827,67836.0,67835.0,0.00310001]
[1729225522043,0.86992053,67836.0,67835.0,0.00310001]
[1729225522267,0.87192053,67836.0,67835.0,0.00310001]
[1729225522500,0.87192053,67836.0,67835.0,0.00410001]
[1729225522948,0.91392978,67836.0,67835.0,0.00310001]
[1729225523388,0.91392978,67836.0,67835.0,0.00410001]
[1729225523389,0.91592978,67836.0,67835.0,0.00410001]
[1729225523621,0.87192053,67836.0,67835.0,0.00410001]
[1729225524506,0.86992053,67836.0,67835.0,0.00310001]
[1729225524941,0.87192053,67836.0,67835.0,0.00410001]
[1729225525872,0.87191959,67836.0,67835.0,0.00410001]
[1729225528284,0.86991959,67836.0,67835.0,0.00310001]
[1729225528756,0.87191959,67836.0,67835.0,0.00310001]
[1729225528979,0.87191959,67836.0,67835.0,0.00410001]
[1729225529203,0.86991959,67836.0,67835.0,0.00310001]
[1729225529424,0.86991959,67836.0,67835.0,0.00210001]
[1729225529632,0.87191959,67836.0,67835.0,0.00410001]
[1729225533838,0.87193738,67836.0,67835.0,0.00410001]
[1729225534060,0.8719374,67836.0,67835.0,0.00410001]
[1729225534501,0.72642025,67836.0,67835.0,0.00410001]
[1729225537332,0.74934724,67836.0,67835.0,0.00410001]
[1729225537544,0.72642025,67836.0,67835.0,0.00410001]
[1729225537760,0.72643261,67836.0,67835.0,0.00410001]
[1729225538198,0.74940715,67836.0,67835.0,0.00410001]
[1729225538641,0.8983663,67836.0,67835.0,0.00410001]
[1729225538854,0.87539176,67836.0,67835.0,0.00410001]
[1729225539092,0.89837175,67836.0,67835.0,0.00410001]
[1729225539307,0.89837175,67836.0,67829.0,0.00207]
[1729225539308,0.250527,67830.0,67829.0,0.00207]
[1729225539520,0.49289946,67830.0,67829.0,0.00207]
[1729225539949,0.49289946,67830.0,67829.0,0.00251601]
[1729225540860,0.49289946,67830.0,67829.0,0.00351601]
[1729225541578,0.49589946,67830.0,67829.0,0.00451601]
[1729225543324,0.48487168,67830.0,67829.0,0.00451601]
[1729225544204,0.48487168,67830.0,67829.0,0.00617201]
[1729225544432,0.49592297,67830.0,67829.0,0.00617201]
[1729225544652,0.38025063,67830.0,67829.0,0.00617201]
[1729225545089,0.49592297,67830.0,67829.0,0.00617201]
[1729225545295,0.38025201,67830.0,67829.0,0.00617201]
[1729225546425,0.38025201,67830.0,67829.0,0.4182325]
[1729225546426,0.01405267,67830.0,67829.0,0.4182325]
[1729225546664,0.003,67830.0,67829.0,0.47526016]
[1729225546913,0.003,67830.0,67829.0,0.48726797]
[1729225547158,0.003,67830.0,67829.0,0.33830882]
[1729225547373,0.147417,67835.0,67831.0,0.147424]
[1729225547597,0.11567234,67832.0,67831.0,0.147424]
[1729225547822,0.12672,67832.0,67829.0,0.38082801]
[1729225548043,0.01104766,67831.0,67830.0,0.147427]
[1729225548468,0.01104766,67831.0,67829.0,0.37582801]
[1729225548469,0.11567234,67832.0,67831.0,0.147425]
[1729225549578,0.11567234,67832.0,67829.0,0.52325501]
[1729225549796,0.11567234,67832.0,67831.0,0.150425]
[1729225550005,0.11567234,67832.0,67831.0,0.003]
[1729225550289,0.14203007,67832.0,67831.0,0.003]
[1729225551181,0.11567234,67832.0,67831.0,0.007]
[1729225554256,0.11567234,67832.0,67831.0,0.003]
[1729225554912,0.26309534,67832.0,67831.0,0.003]
[1729225555141,0.39979919,67832.0,67831.0,0.00029837]
[1729225555364,0.63185177,67832.0,67831.0,0.00029837]
[1729225555582,0.64088211,67832.0,67831.0,0.00029837]
[1729225555808,0.60108168,67832.0,67831.0,0.00029837]
[1729225556020,0.78193811,67832.0,67831.0,0.00029837]
[1729225556236,0.71575402,67832.0,67831.0,0.00029837]
[1729225556679,0.78193811,67832.0,67831.0,0.00029837]
[1729225556901,0.78193811,67832.0,67831.0,0.00129837]
[1729225557127,1.11784791,67832.0,67831.0,0.00129837]
[1729225557352,0.07722949,67832.0,67831.0,0.00129837]
[1729225557588,0.003,67832.0,67831.0,0.16070407]
[1729225558055,0.000828,67835.0,67834.0,0.147418]
[1729225558273,0.000828,67835.0,67834.0,0.14771637]
[1729225558501,0.000828,67835.0,67834.0,0.01226628]
[1729225559169,0.000828,67835.0,67834.0,0.01326628]
[1729225559802,0.000828,67835.0,67834.0,0.00129837]
[1729225560238,0.000828,67835.0,67834.0,0.01326628]
[1729225562936,0.98114736,67835.0,67834.0,0.01326628]
[1729225563155,0.98114736,67835.0,67829.0,0.003726]
[1729225563156,0.237727,67830.0,67829.0,0.003726]
[1729225563381,0.83248799,67830.0,67829.0,0.003726]
[1729225563600,0.70011981,67830.0,67829.0,0.003726]
[1729225563823,0.9814164,67830.0,67829.0,0.003726]
[1729225564052,1.08042364,67830.0,67829.0,0.003726]
[1729225564271,1.18042364,67830.0,67829.0,0.003726]
[1729225564486,1.29609598,67830.0,67829.0,0.003726]
[1729225564710,1.25134709,67830.0,67829.0,0.003726]
[1729225564928,1.25134709,67830.0,67829.0,0.004726]
[1729225565143,0.01,67819.0,67818.0,0.22231279]
[1729225565363,0.01,67819.0,67818.0,0.23644498]
[1729225565364,0.4659659,67819.0,67818.0,0.23644498]
[1729225565639,0.45494148,67819.0,67818.0,0.22231279]
[1729225565892,0.147453,67818.0,67811.0,0.22231279]
[1729225566114,0.20256932,67818.0,67811.0,0.22231279]
[1729225567237,0.15847193,67818.0,67811.0,0.22231279]
[1729225567677,0.15847193,67818.0,67817.0,0.0021]
[1729225568138,0.16347193,67818.0,67817.0,0.0021]
[1729225568581,0.27636554,67818.0,67817.0,0.0021]
[1729225569485,0.27635789,67818.0,67817.0,0.0021]
[1729225569724,0.12890489,67818.0,67811.0,0.22231279]
[1729225569941,0.31471538,67814.0,67811.0,0.22231279]
[1729225570155,0.16725238,67814.0,67811.0,0.22231279]
[1729225570365,0.16725238,67814.0,67812.0,0.01417486]
[1729225570584,0.16725238,67814.0,67810.0,0.01540766]
[1729225570794,0.16725238,67814.0,67811.0,0.01418197]
[1729225571680,0.05339536,67813.0,67811.0,0.01811197]
[1729225572557,0.16725238,67814.0,67811.0,0.01811197]
[1729225574514,0.16825238,67814.0,67811.0,0.01811197]
[1729225574989,0.16725238,67814.0,67811.0,0.01811197]
[1729225575215,0.16825238,67814.0,67811.0,0.01811197]
[1729225579082,0.147464,67813.0,67811.0,0.01811197]
[1729225579304,0.16825238,67814.0,67811.0,0.01811197]
[1729225579534,0.16825238,67814.0,67811.0,0.005586]
[1729225579780,0.18886252,67814.0,67811.0,0.005586]
[1729225580230,0.18886252,67814.0,67812.0,0.0142896]
[1729225580666,0.18786252,67814.0,67812.0,0.0142896]
[1729225582469,0.18886252,67814.0,67812.0,0.0142896]
[1729225583831,0.16825238,67814.0,67812.0,0.0142896]
[1729225587962,0.11523813,67813.0,67812.0,0.0142896]
[1729225589590,0.12902134,67813.0,67812.0,0.0142896]
[1729225590514,0.11523813,67813.0,67812.0,0.0142896]
[1729225590731,0.12902193,67813.0,67812.0,0.0142896]
[1729225591387,0.14005699,67813.0,67812.0,0.0142896]
[1729225593010,0.16215943,67813.0,67812.0,0.0142896]
[1729225593907,0.02481886,67813.0,67812.0,0.38821475]
[1729225594124,0.0137838,67813.0,67812.0,0.38821475]
[1729225594374,0.12905287,67813.0,67812.0,0.2392556]
[1729225594596,0.14010506,67813.0,67812.0,0.2392556]
[1729225594825,0.02486693,67813.0,67812.0,0.2392556]
[1729225595049,0.02486693,67813.0,67812.0,0.1727556]
[1729225595050,0.14010506,67813.0,67812.0,0.1727556]
[1729225595973,0.14010506,67813.0,67812.0,0.1617556]
[1729225596435,0.14010506,67813.0,67812.0,0.1657556]
[1729225596625,0.14010506,67813.0,67812.0,0.1677556]
[1729225596878,0.11523813,67813.0,67812.0,0.1677556]
[1729225597132,0.14009955,67813.0,67812.0,0.1677556]
[1729225597368,0.14009937,67813.0,67812.0,0.1637556]
[1729225597821,0.02486124,67813.0,67812.0,0.1617556]
[1729225598006,0.02486073,67813.0,67812.0,0.1617556]
[1729225598252,0.02486073,67813.0,67812.0,0.1627556]
[1729225598692,0.02486073,67813.0,67812.0,0.1617556]
[1729225599813,0.02486073,67813.0,67812.0,0.1637556]
[1729225600914,0.02486073,67813.0,67812.0,0.1647556]
[1729225601616,0.28756286,67813.0,67812.0,0.0172896]
[1729225601847,0.30966093,67813.0,67812.0,0.0172896]
[1729225602289,0.30966093,67813.0,67812.0,0.003]
[1729225603020,0.30966093,67813.0,67812.0,0.004656]
[1729225603924,0.6186929,67813.0,67812.0,0.004656]
[1729225604850,0.61868273,67813.0,67812.0,0.004656]
[1729225605595,0.66278706,67813.0,67812.0,0.004656]
[1729225605820,0.61585696,67813.0,67812.0,0.004656]
[1729225606045,0.66279931,67813.0,67812.0,0.002656]
[1729225606266,0.61867645,67813.0,67812.0,0.002656]
[1729225607387,0.61867645,67813.0,67812.0,0.001656]
[1729225607618,0.86983921,67813.0,67812.0,0.001656]
[1729225608121,0.87983921,67813.0,67812.0,0.001656]
[1729225608353,0.90289138,67813.0,67812.0,0.001656]
[1729225608797,0.81009217,67813.0,67812.0,0.001656]
[1729225609020,0.57952817,67813.0,67812.0,0.001656]
[1729225609238,0.37817399,67813.0,67812.0,0.001656]
[1729225609687,0.37817399,67813.0,67812.0,0.01594109]
[1729225609914,0.46654439,67813.0,67812.0,0.01594109]
[1729225610811,0.61400839,67813.0,67812.0,0.01594109]
[1729225611033,0.63609217,67813.0,67812.0,0.01594109]
[1729225611251,0.63609217,67813.0,67812.0,0.001656]
[1729225611989,0.77744479,67813.0,67812.0,0.001656]
[1729225612648,0.77743821,67813.0,67812.0,0.001656]
[1729225612883,0.91884318,67813.0,67812.0,0.001656]
[1729225613809,0.62853141,67813.0,67812.0,0.00185491]
[1729225614039,0.73899426,67813.0,67812.0,0.00185491]
[1729225614510,0.73899017,67813.0,67812.0,0.00185491]
[1729225615175,0.62853141,67813.0,67812.0,0.00185491]
[1729225615398,0.739003,67813.0,67812.0,0.00185491]
[1729225616103,0.88219649,67813.0,67812.0,0.00185491]
[1729225616557,0.77173406,67813.0,67812.0,0.00185491]
[1729225617047,0.88228688,67813.0,67812.0,0.00185491]
[1729225617505,0.77173406,67813.0,67812.0,0.00185491]
[1729225618182,0.85003406,67813.0,67812.0,0.00185491]
[1729225619426,0.85027595,67813.0,67812.0,0.00185491]
[1729225620386,0.70708246,67813.0,67812.0,0.00185491]
[1729225620629,0.70708757,67813.0,67812.0,0.00185491]
[1729225621075,0.66513753,67813.0,67812.0,0.00185491]
[1729225621289,0.66013753,67813.0,67812.0,0.00185491]
[1729225621731,0.80760153,67813.0,67812.0,0.00185491]
[1729225622616,0.80757502,67813.0,67812.0,0.00185491]
[1729225623331,0.80757285,67813.0,67812.0,0.00185491]
[1729225623548,0.69706345,67813.0,67812.0,0.00185491]
[1729225623779,0.80757285,67813.0,67812.0,0.00185491]
[1729225624725,0.6402953,67813.0,67812.0,0.00185491]
[1729225624951,0.29952951,67813.0,67812.0,0.00185491]
[1729225625854,0.2111219,67813.0,67812.0,0.00185491]
[1729225626131,0.32636592,67813.0,67812.0,0.00185491]
[1729225626343,0.29952951,67813.0,67812.0,0.00185491]
[1729225626556,0.41477353,67813.0,67812.0,0.00185491]
[1729225626777,0.41477353,67813.0,67812.0,0.01616597]
[1729225627511,0.32630004,67813.0,67812.0,0.01616597]
[1729225627740,0.16319189,67813.0,67812.0,0.01616597]
[1729225628173,0.32631272,67813.0,67812.0,0.01616597]
[1729225628387,0.16319189,67813.0,67812.0,0.01616597]
[1729225628617,0.25156371,67813.0,67812.0,0.01616597]
[1729225628840,0.32631138,67813.0,67812.0,0.01616597]
[1729225629286,0.22947775,67813.0,67812.0,0.01616597]
[1729225629968,0.32630242,67813.0,67812.0,0.01616597]
[1729225630191,0.22947246,67813.0,67812.0,0.01616597]
[1729225630887,0.19357746,67813.0,67812.0,0.01616597]
[1729225631119,0.22949542,67813.0,67812.0,0.01616597]
[1729225631340,0.22949811,67813.0,67812.0,0.01616597]
[1729225631580,0.11425409,67813.0,67812.0,0.01616597]
[1729225631804,0.02587313,67813.0,67812.0,0.33523197]
[1729225632508,0.014817,67813.0,67812.0,0.33523197]
[1729225633417,0.04418121,67818.0,67813.0,0.147462]
[1729225633645,0.02486084,67817.0,67813.0,0.00019891]
[1729225633869,0.02486084,67816.0,67814.0,0.16175884]
[1729225634097,0.02486084,67815.0,67814.0,0.16195775]
[1729225634549,0.02486084,67815.0,67814.0,0.01449575]
[1729225635053,0.02486084,67815.0,67814.0,0.01549575]
[1729225635279,0.02486084,67815.0,67814.0,0.01849575]
[1729225635514,0.01381161,67815.0,67814.0,0.01749575]
[1729225636655,0.01381161,67815.0,67814.0,0.01449575]
[1729225636886,0.01381161,67815.0,67814.0,0.01549575]
[1729225637326,0.01381161,67815.0,67814.0,0.01449575]
[1729225637588,0.19163321,67819.0,67814.0,0.01549575]
[1729225637777,0.02484694,67818.0,67814.0,0.01749575]
[1729225638028,0.02484694,67817.0,67814.0,0.01749575]
[1729225638255,0.147453,67818.0,67814.0,0.01749575]
[1729225638256,0.02484694,67816.0,67814.0,0.01749575]
[1729225638532,0.147453,67818.0,67814.0,0.01549575]
[1729225639008,0.02484401,67817.0,67814.0,0.01449575]
[1729225639229,0.01380223,67816.0,67814.0,0.01449575]
[1729225639462,0.147453,67818.0,67814.0,0.01449575]
[1729225639703,0.02484024,67817.0,67814.0,0.16195675]
[1729225639942,0.02484036,67816.0,67814.0,0.01449576]
[1729225640178,0.02484036,67815.0,67814.0,0.01449576]
[1729225640407,0.01380024,67815.0,67814.0,0.01449576]
[1729225640627,0.01379951,67817.0,67814.0,0.01549576]
[1729225640850,0.02483925,67816.0,67814.0,0.01549576]
[1729225641075,0.26269702,67818.0,67814.0,0.16195676]
[1729225641076,0.11524402,67818.0,67814.0,0.16195676]
[1729225641333,0.11524402,67818.0,67814.0,0.01549576]
[1729225641334,0.02483888,67817.0,67814.0,0.01549576]
[1729225641568,0.30687923,67818.0,67814.0,0.01649576]
[1729225641569,0.02483888,67816.0,67814.0,0.01649576]
[1729225641800,0.01379938,67815.0,67814.0,0.16395676]
[1729225642245,0.01379938,67815.0,67814.0,0.01649576]
[1729225642436,0.30687823,67818.0,67814.0,0.01649576]
[1729225642437,0.26269702,67818.0,67814.0,0.01649576]
[1729225642707,0.26269702,67818.0,67814.0,0.16395676]
[1729225642708,0.02483793,67817.0,67814.0,0.16395676]
[1729225642931,0.01379886,67816.0,67814.0,0.16195676]
[1729225643152,0.30687823,67818.0,67814.0,0.16295676]
[1729225643376,0.02483827,67817.0,67814.0,0.16295676]
[1729225643644,0.01379904,67816.0,67814.0,0.16195676]
[1729225643869,0.02483808,67816.0,67814.0,0.16195676]
[1729225644099,0.01379904,67815.0,67814.0,0.16295676]
[1729225644321,0.01379904,67815.0,67814.0,0.16195676]
[1729225644514,0.30687823,67818.0,67814.0,0.16195676]
[1729225644736,0.02483686,67817.0,67814.0,0.16195676]
[1729225644968,0.30687823,67818.0,67814.0,0.16195676]
[1729225644969,0.02483686,67816.0,67814.0,0.01449576]
[1729225645193,0.01379826,67815.0,67814.0,0.01449576]
[1729225645431,0.01379826,67817.0,67814.0,0.01449576]
[1729225645656,0.02483709,67816.0,67814.0,0.01449576]
[1729225645895,0.01379826,67815.0,67814.0,0.01549576]
[1729225646145,0.01379826,67817.0,67814.0,0.01549576]
[1729225646385,0.02483675,67816.0,67814.0,0.01449576]
[1729225646834,0.01379826,67815.0,67814.0,0.16195676]
[1729225647059,0.01379826,67816.0,67814.0,0.16195676]
[1729225647275,0.01379826,67815.0,67814.0,0.16195676]
[1729225648201,0.02483741,67815.0,67814.0,0.16195676]
[1729225648411,0.01379826,67815.0,67814.0,0.16361276]
[1729225649081,0.02483756,67815.0,67814.0,0.16361276]
[1729225649734,0.02483756,67815.0,67814.0,0.16461276]
[1729225650260,0.02483756,67815.0,67814.0,0.16361276]
[1729225650490,0.02483896,67815.0,67814.0,0.16361276]
[1729225650941,0.14008298,67815.0,67814.0,0.16361276]
[1729225651211,0.14008298,67815.0,67814.0,0.48197191]
[1729225651212,0.01983896,67815.0,67814.0,0.48197191]
[1729225651421,0.1103863,67827.0,67825.0,0.0917]
[1729225651422,0.04415452,67827.0,67825.0,0.0917]
[1729225651648,0.06705978,67829.0,67826.0,0.0824]
[1729225651649,0.000828,67829.0,67826.0,0.0824]
[1729225651909,0.01186868,67829.0,67828.0,0.147431]
[1729225652116,0.01186868,67829.0,67828.0,0.14762992]
[1729225652117,0.000828,67829.0,67828.0,0.14762992]
[1729225652334,0.000828,67829.0,67828.0,0.1632309]
[1729225653663,0.000828,67829.0,67828.0,0.16323089]
[1729225654197,0.000828,67829.0,67828.0,0.16623089]
[1729225654649,0.000828,67829.0,67828.0,0.16823089]
[1729225655997,0.000828,67829.0,67828.0,0.18996296]
[1729225656781,0.000828,67829.0,67828.0,1.10102294]
[1729225656999,0.000828,67829.0,67828.0,0.96962578]
[1729225657253,0.000828,67829.0,67828.0,0.92668356]
[1729225657477,0.000828,67829.0,67828.0,0.91968355]
[1729225657701,0.000828,67829.0,67828.0,0.93368355]
[1729225657960,0.000828,67829.0,67828.0,0.88421662]
[1729225658240,0.000827,67840.0,67839.0,0.157407]
[1729225658466,0.000827,67840.0,67839.0,0.72718616]
[1729225658699,0.000827,67840.0,67839.0,0.78938002]